[Event "*** Titled Tuesday Blitz"]
[Site "Chess.com"]
[Date "2021.02.09"]
[Round "1"]
[White "ural58"]
[Black "MVM2008"]
[Result "0-1"]
[WhiteElo "2474"]
[BlackElo "2114"]
[TimeControl "180+1"]
[EndTime "10:07:11 PST"]
[Termination "MVM2008 won by resignation"]

1. e4 {[%clk 0:03:00.2]} 1... Nf6 {[%clk 0:02:56.2]} 2. e5 {[%clk 0:02:59.7]}
2... Nd5 {[%clk 0:02:53.3]} 3. Nc3 {[%clk 0:03:00.6]} 3... Nxc3 {[%clk
0:02:53.1]} 4. dxc3 {[%clk 0:03:01.5]} 4... d5 {[%clk 0:02:51.3]} 5. Bd3 {[%clk
0:02:56.4]} 5... c5 {[%clk 0:02:50.7]} 6. c4 {[%clk 0:02:36.6]} 6... dxc4 {[%clk
0:02:46.7]} 7. Bxc4 {[%clk 0:02:36.6]} 7... Qxd1+ {[%clk 0:02:46.4]} 8. Kxd1
{[%clk 0:02:37.5]} 8... Nc6 {[%clk 0:02:46.8]} 9. Bf4 {[%clk 0:02:30.2]} 9...
Bf5 {[%clk 0:02:38.3]} 10. c3 {[%clk 0:02:30.2]} 10... O-O-O+ {[%clk 0:02:34.2]}
11. Ke2 {[%clk 0:02:29.9]} 11... g5 {[%clk 0:02:29.2]} 12. Bg3 {[%clk
0:02:25.6]} 12... Bg7 {[%clk 0:02:13.2]} 13. Bxf7 {[%clk 0:02:23.4]} 13... e6
{[%clk 0:01:57]} 14. h4 {[%clk 0:02:10.4]} 14... g4 {[%clk 0:01:47.7]} 15. f4
{[%clk 0:02:07.7]} 15... h5 {[%clk 0:01:43.2]} 16. Bf2 {[%clk 0:01:59.9]} 16...
b6 {[%clk 0:01:38.6]} 17. Rd1 {[%clk 0:01:42.6]} 17... Rxd1 {[%clk 0:01:33.5]}
18. Kxd1 {[%clk 0:01:41.4]} 18... Nd8 {[%clk 0:01:33.3]} 19. Bxh5 {[%clk
0:01:38]} 19... Rxh5 {[%clk 0:01:34.2]} 20. Ne2 {[%clk 0:01:37.9]} 20... Rh8
{[%clk 0:01:26.9]} 21. h5 {[%clk 0:01:34.8]} 21... Bh6 {[%clk 0:01:25.2]} 22.
Bh4 {[%clk 0:01:33]} 22... Nc6 {[%clk 0:01:04.4]} 23. Bf6 {[%clk 0:01:31.7]}
23... Rh7 {[%clk 0:01:01.4]} 24. Kd2 {[%clk 0:01:29.4]} 24... Rd7+ {[%clk
0:00:59.2]} 25. Ke3 {[%clk 0:01:27.3]} 25... Ne7 {[%clk 0:00:51.6]} 26. Bxe7
{[%clk 0:01:24]} 26... Rxe7 {[%clk 0:00:52.5]} 27. Ng3 {[%clk 0:01:22.4]} 27...
Kc7 {[%clk 0:00:45.8]} 28. Ne4 {[%clk 0:01:20.1]} 28... Bxe4 {[%clk 0:00:45.8]}
29. Kxe4 {[%clk 0:01:21]} 29... Rf7 {[%clk 0:00:45.9]} 30. g3 {[%clk 0:01:21.2]}
30... Rg7 {[%clk 0:00:39.6]} 31. a4 {[%clk 0:01:20.9]} 31... Kc6 {[%clk
0:00:38.1]} 32. b4 {[%clk 0:01:20.8]} 32... a6 {[%clk 0:00:35.7]} 33. Rd1 {[%clk
0:01:19.8]} 33... Rd7 {[%clk 0:00:34.1]} 34. b5+ {[%clk 0:01:18.6]} 34... axb5
{[%clk 0:00:32.3]} 35. axb5+ {[%clk 0:01:19.5]} 35... Kc7 {[%clk 0:00:32.8]} 36.
Ra1 {[%clk 0:01:18.5]} 36... Kb7 {[%clk 0:00:31.5]} 37. Rh1 {[%clk 0:01:16.8]}
37... c4 {[%clk 0:00:23.7]} 38. Rh4 {[%clk 0:01:16.1]} 38... Rd3 {[%clk
0:00:21.3]} 39. Rxg4 {[%clk 0:01:15.5]} 39... Rxc3 {[%clk 0:00:21.7]} 40. Rg6
{[%clk 0:01:15.8]} 40... Bf8 {[%clk 0:00:17.8]} 41. g4 {[%clk 0:01:15.9]} 41...
Bc5 {[%clk 0:00:17.5]} 42. f5 {[%clk 0:01:15.5]} 42... Re3+ {[%clk 0:00:14.9]}
43. Kf4 {[%clk 0:01:15.9]} 43... exf5 {[%clk 0:00:13]} 44. gxf5 {[%clk
0:01:14.6]} 44... c3 {[%clk 0:00:13.5]} 45. Rg2 {[%clk 0:01:13.9]} 45... Rd3
{[%clk 0:00:11.9]} 46. h6 {[%clk 0:01:13]} 46... Rd2 {[%clk 0:00:11.1]} 47. Rg1
{[%clk 0:01:08.8]} 47... Bxg1 {[%clk 0:00:10.3]} 48. h7 {[%clk 0:01:09.2]} 48...
Rh2 {[%clk 0:00:09.1]} 49. e6 {[%clk 0:01:10.1]} 49... c2 {[%clk 0:00:09]} 50.
f6 {[%clk 0:01:11]} 50... c1=Q+ {[%clk 0:00:09.1]} 51. Kf5 {[%clk 0:01:11.4]}
51... Qc5+ {[%clk 0:00:08.3]} 52. Kg6 {[%clk 0:01:11]} 52... Qh5+ {[%clk
0:00:08.1]} 53. Kg7 {[%clk 0:01:11.6]} 53... Qxh7+ {[%clk 0:00:08.3]} 54. Kf8
{[%clk 0:01:12.5]} 54... Bc5+ {[%clk 0:00:08.1]} 55. e7 {[%clk 0:01:12.3]} 55...
Bxe7+ {[%clk 0:00:08.2]} 56. fxe7 {[%clk 0:01:12.6]} 56... Rf2+ {[%clk
0:00:08.4]} 57. Ke8 {[%clk 0:01:12.8]} 57... Re2 {[%clk 0:00:07.7]} 0-1

[Event "*** Titled Tuesday Blitz"]
[Site "Chess.com"]
[Date "2021.02.09"]
[Round "1"]
[White "TigranMukhutdinov"]
[Black "pavlitas17"]
[Result "1/2-1/2"]
[WhiteElo "2603"]
[BlackElo "2317"]
[TimeControl "180+1"]
[EndTime "10:07:12 PST"]
[Termination "Game drawn by agreement"]

1. Nf3 {[%clk 0:02:59.7]} 1... Nf6 {[%clk 0:02:59.7]} 2. g3 {[%clk 0:02:58.7]}
2... g6 {[%clk 0:03:00.2]} 3. b3 {[%clk 0:02:58.9]} 3... Bg7 {[%clk 0:03:00.3]}
4. Bb2 {[%clk 0:02:59.6]} 4... O-O {[%clk 0:03:00.8]} 5. Bg2 {[%clk 0:02:59.5]}
5... d6 {[%clk 0:03:01.4]} 6. d4 {[%clk 0:02:59.4]} 6... c5 {[%clk 0:03:01.4]}
7. c4 {[%clk 0:02:58.1]} 7... cxd4 {[%clk 0:03:01.2]} 8. Nxd4 {[%clk 0:02:57.5]}
8... e5 {[%clk 0:03:01]} 9. Nb5 {[%clk 0:02:54.7]} 9... Ne8 {[%clk 0:03:01.2]}
10. O-O {[%clk 0:02:47.4]} 10... Nc6 {[%clk 0:03:01]} 11. N5c3 {[%clk
0:02:48.1]} 11... f5 {[%clk 0:03:00.2]} 12. Na3 {[%clk 0:02:44.2]} 12... a6
{[%clk 0:02:58.7]} 13. Nc2 {[%clk 0:02:44.2]} 13... e4 {[%clk 0:02:57.5]} 14.
Qc1 {[%clk 0:02:42.9]} 14... Qf6 {[%clk 0:02:54.6]} 15. Rb1 {[%clk 0:02:39.2]}
15... Qf7 {[%clk 0:02:53]} 16. Nd5 {[%clk 0:02:38.7]} 16... Be6 {[%clk
0:02:50.8]} 17. Nce3 {[%clk 0:02:36.1]} 17... g5 {[%clk 0:02:47.2]} 18. Bxg7
{[%clk 0:02:30.8]} 18... Qxg7 {[%clk 0:02:47.1]} 19. f4 {[%clk 0:02:30.8]} 19...
exf3 {[%clk 0:02:45.3]} 20. exf3 {[%clk 0:02:20.3]} 20... Nd4 {[%clk 0:02:42.4]}
21. Qd2 {[%clk 0:02:17.9]} 21... f4 {[%clk 0:02:38.8]} 22. Nc2 {[%clk
0:02:16.8]} 22... Nxc2 {[%clk 0:02:31.9]} 23. Qxc2 {[%clk 0:02:16.3]} 23... Bf5
{[%clk 0:02:32]} 24. Qd2 {[%clk 0:02:08.4]} 24... Bxb1 {[%clk 0:02:31.7]} 25.
Rxb1 {[%clk 0:02:09.3]} 25... Nf6 {[%clk 0:02:29.4]} 26. g4 {[%clk 0:02:07.3]}
26... Nxd5 {[%clk 0:02:27.4]} 27. Qxd5+ {[%clk 0:02:08.2]} 27... Kh8 {[%clk
0:02:25.2]} 28. Rd1 {[%clk 0:02:06.8]} 28... Rad8 {[%clk 0:02:24.7]} 29. Bf1
{[%clk 0:02:04.8]} 29... Qe5 {[%clk 0:02:24.3]} 30. Bd3 {[%clk 0:01:57]} 30...
Qxd5 {[%clk 0:02:23.5]} 31. cxd5 {[%clk 0:01:56.7]} 31... Rc8 {[%clk 0:02:23.4]}
32. Be4 {[%clk 0:01:54.2]} 32... Rc3 {[%clk 0:02:21.7]} 33. Kg2 {[%clk 0:01:54]}
33... h6 {[%clk 0:02:21.6]} 34. h4 {[%clk 0:01:49.1]} 34... Kg7 {[%clk
0:02:20.6]} 35. Rh1 {[%clk 0:01:47.4]} 35... Rh8 {[%clk 0:02:19.9]} 36. Bf5
{[%clk 0:01:42.7]} 36... gxh4 {[%clk 0:02:14.5]} 37. Re1 {[%clk 0:01:38]} 37...
h3+ {[%clk 0:02:11.9]} 38. Kxh3 {[%clk 0:01:38.2]} 38... Rxf3+ {[%clk
0:02:11.7]} 39. Kg2 {[%clk 0:01:35.4]} 39... Rg3+ {[%clk 0:02:11]} 40. Kf2
{[%clk 0:01:35.6]} 40... Re3 {[%clk 0:02:11]} 41. Rc1 {[%clk 0:01:34.6]} 41...
Rhe8 {[%clk 0:02:09.3]} 42. Rc7+ {[%clk 0:01:33.9]} 42... R8e7 {[%clk
0:02:09.3]} 43. Rc4 {[%clk 0:01:31.5]} 43... f3 {[%clk 0:02:07.8]} 44. Be6
{[%clk 0:01:30.1]} 44... R3xe6 {[%clk 0:01:54.7]} 45. dxe6 {[%clk 0:01:29.7]}
45... Rxe6 {[%clk 0:01:55.1]} 46. Rc7+ {[%clk 0:01:29.7]} 46... Kg6 {[%clk
0:01:54.1]} 47. Kxf3 {[%clk 0:01:26.8]} 47... b5 {[%clk 0:01:54.1]} 48. Rc6
{[%clk 0:01:26.2]} 48... a5 {[%clk 0:01:54]} 49. Rb6 {[%clk 0:01:25.5]} 49... b4
{[%clk 0:01:51.7]} 50. Ra6 {[%clk 0:01:25.8]} 50... Rf6+ {[%clk 0:01:49]} 51.
Kg3 {[%clk 0:01:25.8]} 51... Re6 {[%clk 0:01:48.6]} 52. Rxa5 {[%clk 0:01:25.2]}
52... Re3+ {[%clk 0:01:41.3]} 53. Kf4 {[%clk 0:01:24.5]} 53... Rd3 {[%clk
0:01:41.2]} 54. Rb5 {[%clk 0:01:23.5]} 54... Rd4+ {[%clk 0:01:40.1]} 55. Kf3
{[%clk 0:01:22.9]} 55... Kf6 {[%clk 0:01:38]} 56. Kg3 {[%clk 0:01:17.1]} 56...
Ke6 {[%clk 0:01:37.1]} 57. Rh5 {[%clk 0:01:16.4]} 57... d5 {[%clk 0:01:36.5]}
58. Rxh6+ {[%clk 0:01:16.3]} 58... Ke5 {[%clk 0:01:36.8]} 59. Rh8 {[%clk
0:01:13.8]} 59... Rd2 {[%clk 0:01:36.3]} 60. Rb8 {[%clk 0:01:12]} 60... d4
{[%clk 0:01:35.8]} 61. Rxb4 {[%clk 0:01:10.7]} 61... d3 {[%clk 0:01:36]} 62. Kf3
{[%clk 0:01:09.5]} 62... Rxa2 {[%clk 0:01:35.1]} 63. Ke3 {[%clk 0:01:09.4]}
63... d2 {[%clk 0:01:34.6]} 64. Rb5+ {[%clk 0:01:09.5]} 64... Kd6 {[%clk
0:01:34]} 65. Ke2 {[%clk 0:01:10.4]} 65... Kc6 {[%clk 0:01:31.7]} 66. Rg5 {[%clk
0:01:09.8]} 66... Rb2 {[%clk 0:01:31]} 67. Rf5 {[%clk 0:00:54]} 67... Rxb3
{[%clk 0:01:25.3]} 68. Kxd2 {[%clk 0:00:53.8]} 68... Rg3 {[%clk 0:01:25.2]} 69.
Rf4 {[%clk 0:00:49.3]} 69... Kd5 {[%clk 0:01:25.1]} 70. Ke2 {[%clk 0:00:49]}
70... Ke5 {[%clk 0:01:25.1]} 71. Rf5+ {[%clk 0:00:45.5]} 71... Ke4 {[%clk
0:01:19.7]} 72. Rf8 {[%clk 0:00:43.1]} 72... Rxg4 {[%clk 0:01:19]} 73. Re8+
{[%clk 0:00:42.3]} 1/2-1/2

[Event "*** Titled Tuesday Blitz"]
[Site "Chess.com"]
[Date "2021.02.09"]
[Round "1"]
[White "Stormeman100100"]
[Black "Pantata007"]
[Result "1-0"]
[WhiteElo "2555"]
[BlackElo "2240"]
[TimeControl "180+1"]
[EndTime "10:07:12 PST"]
[Termination "Stormeman100100 won on time"]

1. e4 {[%clk 0:02:59.5]} 1... e5 {[%clk 0:02:59.6]} 2. Nf3 {[%clk 0:02:58.5]}
2... Nc6 {[%clk 0:02:59.8]} 3. Bc4 {[%clk 0:02:56.9]} 3... Bc5 {[%clk
0:02:59.3]} 4. d3 {[%clk 0:02:54]} 4... Nf6 {[%clk 0:02:59.2]} 5. c3 {[%clk
0:02:49]} 5... O-O {[%clk 0:02:58.5]} 6. O-O {[%clk 0:02:48.9]} 6... d6 {[%clk
0:02:58.3]} 7. Nbd2 {[%clk 0:02:44.7]} 7... a5 {[%clk 0:02:57.8]} 8. Re1 {[%clk
0:02:44.3]} 8... Be6 {[%clk 0:02:46]} 9. Bb5 {[%clk 0:02:35.9]} 9... Ba7 {[%clk
0:02:40.1]} 10. Nf1 {[%clk 0:02:33.4]} 10... h6 {[%clk 0:02:29.7]} 11. d4 {[%clk
0:02:24]} 11... exd4 {[%clk 0:02:15.9]} 12. cxd4 {[%clk 0:02:23.3]} 12... Bg4
{[%clk 0:02:05.2]} 13. Bxc6 {[%clk 0:02:00.7]} 13... bxc6 {[%clk 0:02:06.1]} 14.
Ne3 {[%clk 0:02:00.8]} 14... Bxf3 {[%clk 0:01:48.9]} 15. gxf3 {[%clk 0:02:01.7]}
15... Nh5 {[%clk 0:01:35.7]} 16. Kh1 {[%clk 0:01:45.5]} 16... Qd7 {[%clk
0:01:23.1]} 17. Nf5 {[%clk 0:01:38.8]} 17... d5 {[%clk 0:00:56.4]} 18. Rg1
{[%clk 0:01:22.4]} 18... Kh7 {[%clk 0:00:38.4]} 19. Qd3 {[%clk 0:00:25]} 19...
dxe4 {[%clk 0:00:23.7]} 20. fxe4 {[%clk 0:00:24.1]} 20... g6 {[%clk 0:00:19.1]}
21. Nxh6 {[%clk 0:00:18]} 21... Qxd4 {[%clk 0:00:19]} 22. Qxd4 {[%clk
0:00:14.1]} 22... Bxd4 {[%clk 0:00:19.9]} 23. Ng4 {[%clk 0:00:14.6]} 23... Rab8
{[%clk 0:00:14.2]} 24. Rb1 {[%clk 0:00:14.1]} 24... Rfe8 {[%clk 0:00:11.2]} 25.
Re1 {[%clk 0:00:13.2]} 25... f5 {[%clk 0:00:07.9]} 26. Ne3 {[%clk 0:00:11.7]}
26... Rxe4 {[%clk 0:00:07.8]} 27. f3 {[%clk 0:00:12.1]} 27... Re7 {[%clk
0:00:03.5]} 28. Nc2 {[%clk 0:00:12.4]} 28... Rxe1+ {[%clk 0:00:03]} 29. Nxe1
{[%clk 0:00:13.3]} 29... Nf4 {[%clk 0:00:02.1]} 30. Bxf4 {[%clk 0:00:12.9]}
30... Rxb2 {[%clk 0:00:02.2]} 31. Rxb2 {[%clk 0:00:13]} 31... Bxb2 {[%clk
0:00:03.1]} 32. Nd3 {[%clk 0:00:13.9]} 32... Bf6 {[%clk 0:00:02.5]} 33. Bxc7
{[%clk 0:00:14]} 1-0

[Event "*** Titled Tuesday Blitz"]
[Site "Chess.com"]
[Date "2021.02.09"]
[Round "1"]
[White "theultimatehunter"]
[Black "sokidze"]
[Result "1-0"]
[WhiteElo "2220"]
[BlackElo "2504"]
[TimeControl "180+1"]
[EndTime "10:07:12 PST"]
[Termination "theultimatehunter won on time"]

1. d4 {[%clk 0:02:59.8]} 1... Nf6 {[%clk 0:03:00]} 2. Nf3 {[%clk 0:02:59.9]}
2... e6 {[%clk 0:03:00.3]} 3. c4 {[%clk 0:02:59.3]} 3... b6 {[%clk 0:03:00.2]}
4. g3 {[%clk 0:02:59.2]} 4... c6 {[%clk 0:03:00.4]} 5. Bg2 {[%clk 0:02:59.3]}
5... Be7 {[%clk 0:03:01]} 6. O-O {[%clk 0:02:59.9]} 6... O-O {[%clk 0:03:01.2]}
7. Qc2 {[%clk 0:02:58.9]} 7... d5 {[%clk 0:03:01.4]} 8. Nbd2 {[%clk 0:02:58.7]}
8... Bb7 {[%clk 0:03:01.3]} 9. e4 {[%clk 0:02:59.2]} 9... Na6 {[%clk 0:03:01.2]}
10. e5 {[%clk 0:02:58.9]} 10... Nd7 {[%clk 0:02:57.4]} 11. b3 {[%clk 0:02:57.4]}
11... c5 {[%clk 0:02:42.2]} 12. Bb2 {[%clk 0:02:51.3]} 12... Nb4 {[%clk
0:02:33.1]} 13. Qb1 {[%clk 0:02:42.5]} 13... Rc8 {[%clk 0:02:21.8]} 14. a3
{[%clk 0:02:39.9]} 14... Nc6 {[%clk 0:02:21.8]} 15. cxd5 {[%clk 0:02:39.2]}
15... exd5 {[%clk 0:02:20.5]} 16. Qf5 {[%clk 0:02:30.8]} 16... cxd4 {[%clk
0:01:48.6]} 17. e6 {[%clk 0:02:25.4]} 17... Nc5 {[%clk 0:01:38.5]} 18. Nxd4
{[%clk 0:01:45.3]} 18... Nxd4 {[%clk 0:01:35.3]} 19. Bxd4 {[%clk 0:01:44.8]}
19... fxe6 {[%clk 0:01:23.2]} 20. Qg4 {[%clk 0:01:44]} 20... Bf6 {[%clk
0:01:23]} 21. Bxc5 {[%clk 0:01:40.5]} 21... bxc5 {[%clk 0:01:14.9]} 22. Qxe6+
{[%clk 0:01:40.2]} 22... Kh8 {[%clk 0:01:15.1]} 23. Rad1 {[%clk 0:01:36.1]}
23... Re8 {[%clk 0:01:10.6]} 24. Qf5 {[%clk 0:01:25.3]} 24... Re5 {[%clk
0:01:06.4]} 25. Qc2 {[%clk 0:01:25.8]} 25... Qe7 {[%clk 0:00:56.8]} 26. Nf3
{[%clk 0:01:10]} 26... Re2 {[%clk 0:00:56.5]} 27. Rd2 {[%clk 0:01:10.5]} 27...
Rxd2 {[%clk 0:00:48.9]} 28. Qxd2 {[%clk 0:01:11.4]} 28... c4 {[%clk 0:00:44.1]}
29. bxc4 {[%clk 0:01:07.1]} 29... dxc4 {[%clk 0:00:43.5]} 30. Re1 {[%clk
0:00:30.1]} 30... Qxa3 {[%clk 0:00:33.5]} 31. Qd7 {[%clk 0:00:29.8]} 31... Qf8
{[%clk 0:00:07.3]} 32. Qxb7 {[%clk 0:00:29]} 32... c3 {[%clk 0:00:08.2]} 33. Rc1
{[%clk 0:00:27.6]} 33... a5 {[%clk 0:00:04.7]} 34. Ne1 {[%clk 0:00:27.7]} 34...
h6 {[%clk 0:00:03.6]} 35. Qb3 {[%clk 0:00:27.3]} 35... Qc5 {[%clk 0:00:03]} 36.
Nd3 {[%clk 0:00:26.5]} 36... Qd4 {[%clk 0:00:02.4]} 37. Nf4 {[%clk 0:00:26.5]}
37... Re8 {[%clk 0:00:01.7]} 38. Bf1 {[%clk 0:00:26.4]} 38... Bg5 {[%clk
0:00:01]} 39. Qf7 {[%clk 0:00:25.6]} 1-0

[Event "*** Titled Tuesday Blitz"]
[Site "Chess.com"]
[Date "2021.02.09"]
[Round "1"]
[White "serhanberat_ozdemir"]
[Black "GadimbayliA"]
[Result "1-0"]
[WhiteElo "2461"]
[BlackElo "2852"]
[TimeControl "180+1"]
[EndTime "10:07:14 PST"]
[Termination "serhanberat_ozdemir won on time"]

1. e4 {[%clk 0:02:58.8]} 1... e5 {[%clk 0:02:59.7]} 2. Nf3 {[%clk 0:02:59]} 2...
d5 {[%clk 0:02:59.8]} 3. d4 {[%clk 0:02:51.5]} 3... dxe4 {[%clk 0:02:59.4]} 4.
Nxe5 {[%clk 0:02:48.7]} 4... Bd6 {[%clk 0:02:59.5]} 5. Nc3 {[%clk 0:02:45.5]}
5... Bxe5 {[%clk 0:02:59.2]} 6. dxe5 {[%clk 0:02:46.4]} 6... Qxd1+ {[%clk
0:02:59.6]} 7. Kxd1 {[%clk 0:02:43.1]} 7... Nc6 {[%clk 0:02:59]} 8. Bb5 {[%clk
0:02:38.9]} 8... Bd7 {[%clk 0:02:58.6]} 9. Bf4 {[%clk 0:02:35.5]} 9... O-O-O
{[%clk 0:02:56.8]} 10. Bxc6 {[%clk 0:02:32.4]} 10... Bxc6+ {[%clk 0:02:57.7]}
11. Ke2 {[%clk 0:02:32.4]} 11... Ne7 {[%clk 0:02:56.7]} 12. Rad1 {[%clk
0:02:30.8]} 12... Ng6 {[%clk 0:02:55.7]} 13. Bg3 {[%clk 0:02:31.3]} 13... Rxd1
{[%clk 0:02:41.6]} 14. Rxd1 {[%clk 0:02:30.2]} 14... Re8 {[%clk 0:02:41.6]} 15.
b4 {[%clk 0:01:52.3]} 15... a6 {[%clk 0:02:28.2]} 16. a4 {[%clk 0:01:50.4]}
16... b6 {[%clk 0:02:08.4]} 17. b5 {[%clk 0:01:47.4]} 17... Bb7 {[%clk 0:02:08]}
18. Rd4 {[%clk 0:01:34.3]} 18... Nxe5 {[%clk 0:02:07.3]} 19. a5 {[%clk
0:01:30.8]} 19... bxa5 {[%clk 0:01:47.4]} 20. Ra4 {[%clk 0:01:30.9]} 20... axb5
{[%clk 0:01:47.1]} 21. Nxb5 {[%clk 0:01:29.2]} 21... Nc6 {[%clk 0:01:08.7]} 22.
Nxc7 {[%clk 0:01:24.3]} 22... Rd8 {[%clk 0:01:06.8]} 23. Nb5 {[%clk 0:01:21.1]}
23... Ba6 {[%clk 0:01:04.9]} 24. c4 {[%clk 0:01:21.1]} 24... Rd7 {[%clk
0:00:30]} 25. h4 {[%clk 0:01:15.4]} 25... g6 {[%clk 0:00:27.3]} 26. Nd6+ {[%clk
0:01:12.7]} 26... Kd8 {[%clk 0:00:27.2]} 27. Nxe4 {[%clk 0:01:11.4]} 27... Re7
{[%clk 0:00:27.5]} 28. Kd3 {[%clk 0:01:07.3]} 28... Nb4+ {[%clk 0:00:22]} 29.
Kd4 {[%clk 0:01:07.5]} 29... Nc2+ {[%clk 0:00:13.1]} 30. Kd3 {[%clk 0:01:07.1]}
30... Ne1+ {[%clk 0:00:13.1]} 31. Kd4 {[%clk 0:01:04.2]} 31... Nxg2 {[%clk
0:00:11.6]} 32. Rxa5 {[%clk 0:00:59.5]} 32... Bc8 {[%clk 0:00:11.6]} 33. Ra8
{[%clk 0:00:56.1]} 33... Kd7 {[%clk 0:00:03.7]} 34. Nc5+ {[%clk 0:00:50]} 34...
Kd8 {[%clk 0:00:04.2]} 35. Bd6 {[%clk 0:00:45.6]} 35... Re1 {[%clk 0:00:03.6]}
36. Kd5 {[%clk 0:00:42.9]} 36... Nxh4 {[%clk 0:00:02.8]} 37. Kc6 {[%clk
0:00:40]} 37... Rb1 {[%clk 0:00:03.3]} 38. Bc7+ {[%clk 0:00:38]} 38... Ke7
{[%clk 0:00:03.7]} 39. Rxc8 {[%clk 0:00:37.2]} 39... Nf5 {[%clk 0:00:04.3]} 40.
Bd8+ {[%clk 0:00:29.7]} 1-0

[Event "*** Titled Tuesday Blitz"]
[Site "Chess.com"]
[Date "2021.02.09"]
[Round "1"]
[White "lacafi"]
[Black "PriSachu"]
[Result "0-1"]
[WhiteElo "2219"]
[BlackElo "2535"]
[TimeControl "180+1"]
[EndTime "10:07:14 PST"]
[Termination "PriSachu won by resignation"]

1. d4 {[%clk 0:03:00.8]} 1... d5 {[%clk 0:02:44.1]} 2. Nf3 {[%clk 0:03:01.1]}
2... Nf6 {[%clk 0:02:38.9]} 3. e3 {[%clk 0:03:00.6]} 3... c6 {[%clk 0:02:37.6]}
4. Nbd2 {[%clk 0:02:58.3]} 4... Bf5 {[%clk 0:02:35]} 5. Be2 {[%clk 0:02:57.4]}
5... h6 {[%clk 0:02:34.2]} 6. O-O {[%clk 0:02:57.3]} 6... e6 {[%clk 0:02:34.2]}
7. b3 {[%clk 0:02:57.7]} 7... Bd6 {[%clk 0:02:32.4]} 8. Bb2 {[%clk 0:02:58.2]}
8... O-O {[%clk 0:02:32.1]} 9. c4 {[%clk 0:02:58.8]} 9... Nbd7 {[%clk
0:02:31.4]} 10. a3 {[%clk 0:02:55.1]} 10... Qe7 {[%clk 0:02:29.6]} 11. b4 {[%clk
0:02:53.6]} 11... Rad8 {[%clk 0:02:24.2]} 12. c5 {[%clk 0:02:36.1]} 12... Bc7
{[%clk 0:02:11.5]} 13. Ne5 {[%clk 0:02:36.2]} 13... Nxe5 {[%clk 0:02:04.4]} 14.
dxe5 {[%clk 0:02:36.4]} 14... Nd7 {[%clk 0:02:04.9]} 15. f4 {[%clk 0:02:35.9]}
15... f6 {[%clk 0:02:04.2]} 16. exf6 {[%clk 0:02:27.9]} 16... Nxf6 {[%clk
0:02:01.1]} 17. Nf3 {[%clk 0:02:25.3]} 17... Be4 {[%clk 0:01:43.9]} 18. Ne5
{[%clk 0:02:20.4]} 18... Nd7 {[%clk 0:01:39.4]} 19. Nxd7 {[%clk 0:01:53.1]}
19... Rxd7 {[%clk 0:01:37.2]} 20. Bf3 {[%clk 0:01:37.9]} 20... Bxf3 {[%clk
0:01:33.5]} 21. Rxf3 {[%clk 0:01:35]} 21... e5 {[%clk 0:01:34]} 22. fxe5 {[%clk
0:01:31.1]} 22... Rxf3 {[%clk 0:01:27.4]} 23. Qxf3 {[%clk 0:01:27.8]} 23... Bxe5
{[%clk 0:01:27.2]} 24. Bd4 {[%clk 0:00:31.3]} 24... Qe8 {[%clk 0:00:46.7]} 25.
Rf1 {[%clk 0:00:28.4]} 25... Re7 {[%clk 0:00:45.8]} 26. Qg4 {[%clk 0:00:22.2]}
26... Bxd4 {[%clk 0:00:17.4]} 27. exd4 {[%clk 0:00:21.4]} 27... Rf7 {[%clk
0:00:18]} 28. Rxf7 {[%clk 0:00:15.8]} 28... Qxf7 {[%clk 0:00:18.9]} 29. Qc8+
{[%clk 0:00:13.2]} 29... Kh7 {[%clk 0:00:18.7]} 30. Qb8 {[%clk 0:00:13.3]} 30...
a6 {[%clk 0:00:18.1]} 31. Qe5 {[%clk 0:00:12.7]} 31... Kg6 {[%clk 0:00:17.1]}
32. h3 {[%clk 0:00:12.3]} 32... Qf5 {[%clk 0:00:16.8]} 33. Qe8+ {[%clk
0:00:12.1]} 33... Kg5 {[%clk 0:00:16.4]} 34. Qe3+ {[%clk 0:00:09.5]} 34... Qf4
{[%clk 0:00:15.7]} 35. Qe7+ {[%clk 0:00:10]} 35... Kg6 {[%clk 0:00:15.5]} 36.
Qe6+ {[%clk 0:00:09.7]} 36... Kh7 {[%clk 0:00:15.3]} 37. Qe5 {[%clk 0:00:09.2]}
37... Qxe5 {[%clk 0:00:15.4]} 38. dxe5 {[%clk 0:00:09.5]} 38... Kg6 {[%clk
0:00:16.1]} 39. Kf2 {[%clk 0:00:10.2]} 39... Kf5 {[%clk 0:00:16.4]} 40. Ke3
{[%clk 0:00:10]} 40... Kxe5 {[%clk 0:00:17]} 0-1

[Event "*** Titled Tuesday Blitz"]
[Site "Chess.com"]
[Date "2021.02.09"]
[Round "1"]
[White "smshk35"]
[Black "Reader777"]
[Result "1/2-1/2"]
[WhiteElo "2417"]
[BlackElo "2800"]
[TimeControl "180+1"]
[EndTime "10:07:15 PST"]
[Termination "Game drawn by repetition"]

1. e4 {[%clk 0:03:00.9]} 1... c5 {[%clk 0:02:58.8]} 2. Nf3 {[%clk 0:02:59]} 2...
d6 {[%clk 0:02:58.6]} 3. Bd3 {[%clk 0:02:58]} 3... Nc6 {[%clk 0:02:57.3]} 4. O-O
{[%clk 0:02:56.9]} 4... g6 {[%clk 0:02:57.1]} 5. c3 {[%clk 0:02:55.8]} 5... Bg7
{[%clk 0:02:57.4]} 6. Bc2 {[%clk 0:02:55.9]} 6... Bg4 {[%clk 0:02:57]} 7. h3
{[%clk 0:02:56.1]} 7... Bxf3 {[%clk 0:02:56.9]} 8. Qxf3 {[%clk 0:02:57]} 8...
Nf6 {[%clk 0:02:56.5]} 9. d3 {[%clk 0:02:53.3]} 9... O-O {[%clk 0:02:56.5]} 10.
Bg5 {[%clk 0:02:48.3]} 10... Nd7 {[%clk 0:02:54.1]} 11. Nd2 {[%clk 0:02:46.1]}
11... b5 {[%clk 0:02:52.9]} 12. Qe3 {[%clk 0:02:39.9]} 12... b4 {[%clk
0:02:50.8]} 13. Bh6 {[%clk 0:02:32.1]} 13... bxc3 {[%clk 0:02:44.2]} 14. Bxg7
{[%clk 0:02:31.4]} 14... Kxg7 {[%clk 0:02:43.3]} 15. bxc3 {[%clk 0:02:30.8]}
15... Qa5 {[%clk 0:02:42.4]} 16. d4 {[%clk 0:02:26.7]} 16... cxd4 {[%clk
0:02:40.7]} 17. cxd4 {[%clk 0:02:27.6]} 17... e5 {[%clk 0:02:25]} 18. Nc4 {[%clk
0:02:23.1]} 18... Qc7 {[%clk 0:02:24.1]} 19. dxe5 {[%clk 0:02:01.8]} 19... dxe5
{[%clk 0:02:22.6]} 20. Ba4 {[%clk 0:01:59.8]} 20... Nd4 {[%clk 0:02:09.7]} 21.
Rac1 {[%clk 0:01:58.5]} 21... Nb6 {[%clk 0:02:01.4]} 22. Nxb6 {[%clk 0:01:42.2]}
22... Qxb6 {[%clk 0:02:01.1]} 23. Rb1 {[%clk 0:01:39.3]} 23... Qa6 {[%clk
0:01:51.9]} 24. Bb3 {[%clk 0:01:36.5]} 24... Rab8 {[%clk 0:01:50.1]} 25. Bd5
{[%clk 0:01:35]} 25... Rfc8 {[%clk 0:01:44.9]} 26. f4 {[%clk 0:00:46.2]} 26...
Ne2+ {[%clk 0:01:36.4]} 27. Kh2 {[%clk 0:00:40.2]} 27... Nxf4 {[%clk 0:01:32.9]}
28. Rxb8 {[%clk 0:00:37.5]} 28... Rxb8 {[%clk 0:01:32]} 29. g3 {[%clk
0:00:31.5]} 29... Nxd5 {[%clk 0:01:29.5]} 30. exd5 {[%clk 0:00:30.8]} 30... Qxf1
{[%clk 0:01:29.4]} 31. Qxe5+ {[%clk 0:00:30.2]} 31... Kh6 {[%clk 0:01:21.9]} 32.
Qxb8 {[%clk 0:00:29.4]} 32... Qe2+ {[%clk 0:01:18.2]} 33. Kg1 {[%clk 0:00:27.5]}
33... Qd1+ {[%clk 0:01:17.5]} 34. Kh2 {[%clk 0:00:26.5]} 34... Qd2+ {[%clk
0:01:16]} 35. Kg1 {[%clk 0:00:25.7]} 35... Qe3+ {[%clk 0:01:00.4]} 36. Kg2
{[%clk 0:00:24.4]} 36... Qe4+ {[%clk 0:00:59.9]} 37. Kh2 {[%clk 0:00:24.3]}
37... Qc2+ {[%clk 0:00:52.6]} 38. Kg1 {[%clk 0:00:23.7]} 38... Qc5+ {[%clk
0:00:52.3]} 39. Kh2 {[%clk 0:00:23.2]} 39... Qf2+ {[%clk 0:00:45.4]} 40. Kh1
{[%clk 0:00:23.2]} 40... Qe1+ {[%clk 0:00:44.1]} 41. Kh2 {[%clk 0:00:23.1]}
41... Qe2+ {[%clk 0:00:44]} 42. Kh1 {[%clk 0:00:23.2]} 42... Qd1+ {[%clk
0:00:41.3]} 43. Kh2 {[%clk 0:00:22.1]} 43... Qd2+ {[%clk 0:00:41.4]} 44. Kg1
{[%clk 0:00:21.6]} 44... Qd4+ {[%clk 0:00:36.8]} 45. Kh2 {[%clk 0:00:21]} 45...
Qd2+ {[%clk 0:00:24.2]} 1/2-1/2